[Event "Titled Tuesday Blitz September 20 Late 2022"]
[White "Goroshkov, Maksym"]
[Black "Rustemov, Alexander"]
[WhiteFideId "14142716"]
[BlackFideId "4119002"]
[WhiteElo "2257"]
[BlackElo "2843"]
[Result "0-1"]
[Round "08"]
[TimeControl "180+1"]
[Date "2022.09.20"]
[WhiteClock "0:00:05"]
[BlackClock "0:00:16"]

1. e4 {[%clk 0:02:59]}  e6 {[%clk 0:02:59]} 2. d4 {[%clk 0:02:59]}  d5 {[%clk 0:02:59]} 3. exd5 {[%clk 0:03:00]}  exd5 {[%clk 0:02:59]} 4. c4 {[%clk 0:03:01]}  Nf6 {[%clk 0:02:57]} 5. Nc3 {[%clk 0:03:01]}  Bb4 {[%clk 0:02:55]} 6. Nf3 {[%clk 0:03:01]}  O-O {[%clk 0:02:55]} 7. Be2 {[%clk 0:03:02]}  dxc4 {[%clk 0:02:54]} 8. Bxc4 {[%clk 0:03:03]}  Nc6 {[%clk 0:02:52]} 9. O-O {[%clk 0:03:02]}  Bd6 {[%clk 0:02:47]} 10. Bg5 {[%clk 0:03:00]}  h6 {[%clk 0:02:46]} 11. Bh4 {[%clk 0:02:59]}  g5 {[%clk 0:02:39]} 12. Nxg5 {[%clk 0:02:39]}  hxg5 {[%clk 0:02:35]} 13. Bxg5 {[%clk 0:02:40]}  Be7 {[%clk 0:02:23]} 14. Qd3 {[%clk 0:02:29]}  Kg7 {[%clk 0:02:14]} 15. Qg3 {[%clk 0:02:21]}  Nh5 {[%clk 0:02:13]} 16. Bf6+ {[%clk 0:02:07]}  Kxf6 {[%clk 0:01:59]} 17. Ne4+ {[%clk 0:01:41]}  Kf5 {[%clk 0:01:55]} 18. Qd3 {[%clk 0:01:19]}  Qxd4 {[%clk 0:01:16]} 19. Ng3+ {[%clk 0:01:11]}  Kg5 {[%clk 0:01:10]} 20. Qh7 {[%clk 0:00:34]}  Rh8 {[%clk 0:00:59]} 21. Ne4+ {[%clk 0:00:22]}  Kh4 {[%clk 0:00:52]} 22. g3+ {[%clk 0:00:19]}  Kh3 {[%clk 0:00:52]} 23. Qxf7 {[%clk 0:00:17]}  Qxe4 {[%clk 0:00:41]} 24. f3 {[%clk 0:00:17]}  Qe3+ {[%clk 0:00:32]} 25. Rf2 {[%clk 0:00:18]}  Nxg3 {[%clk 0:00:27]} 26. hxg3 {[%clk 0:00:16]}  Bc5 {[%clk 0:00:22]} 27. Bf1+ {[%clk 0:00:15]}  Kxg3 {[%clk 0:00:22]} 28. Qg7+ {[%clk 0:00:14]}  Kf4 {[%clk 0:00:18]} 29. Qf6+ {[%clk 0:00:15]}  Bf5 {[%clk 0:00:17]} 30. Qxf5+ {[%clk 0:00:01]}  Kxf5 {[%clk 0:00:17]} 31. Bd3+ {[%clk 0:00:01]}  Qxd3 {[%clk 0:00:17]} 32. Re1 {[%clk 0:00:02]}  Bxf2+ {[%clk 0:00:16]} 33. Kxf2 {[%clk 0:00:03]}  Rh2+ {[%clk 0:00:15]} 34. Kg3 {[%clk 0:00:03]}  Rh3+ {[%clk 0:00:15]} 35. Kxh3 {[%clk 0:00:04]}  Qxf3+ {[%clk 0:00:15]} 36. Kh2 {[%clk 0:00:05]}  Rh8+ {[%clk 0:00:15]} 37. Kg1 {[%clk 0:00:05]}  Rh1# {[%clk 0:00:16]} 0-1


[Site "https://www.chess.com"]

[Event "Titled Tuesday Blitz September 20 Late 2022"]
[White "Gurevich, Dmitry"]
[Black "Papasimakopoulos, Alexandros"]
[WhiteFideId "2000407"]
[BlackFideId "4244125"]
[WhiteElo "2506"]
[BlackElo "2357"]
[Result "1-0"]
[Round "08"]
[TimeControl "180+1"]
[Date "2022.09.20"]
[WhiteClock "0:00:04"]
[BlackClock "0:00:10"]

1. d4 {[%clk 0:03:00]}  e6 {[%clk 0:02:55]} 2. c4 {[%clk 0:02:59]}  Nf6 {[%clk 0:02:52]} 3. Nf3 {[%clk 0:02:57]}  Bb4+ {[%clk 0:02:52]} 4. Bd2 {[%clk 0:02:57]}  Qe7 {[%clk 0:02:52]} 5. Nc3 {[%clk 0:02:53]}  b6 {[%clk 0:02:52]} 6. g3 {[%clk 0:02:53]}  Bb7 {[%clk 0:02:52]} 7. Bg2 {[%clk 0:02:53]}  O-O {[%clk 0:02:53]} 8. O-O {[%clk 0:02:51]}  Bxc3 {[%clk 0:02:53]} 9. Bxc3 {[%clk 0:02:50]}  Be4 {[%clk 0:02:54]} 10. Rc1 {[%clk 0:02:47]}  d6 {[%clk 0:02:53]} 11. Re1 {[%clk 0:02:44]}  Nbd7 {[%clk 0:02:52]} 12. Bh3 {[%clk 0:02:44]}  Bb7 {[%clk 0:02:33]} 13. Nd2 {[%clk 0:02:41]}  Ne4 {[%clk 0:02:32]} 14. Nxe4 {[%clk 0:02:39]}  Bxe4 {[%clk 0:02:33]} 15. f3 {[%clk 0:02:34]}  Bf5 {[%clk 0:02:32]} 16. Bg2 {[%clk 0:02:33]}  e5 {[%clk 0:02:23]} 17. e4 {[%clk 0:02:27]}  Bg6 {[%clk 0:02:21]} 18. d5 {[%clk 0:02:17]}  f5 {[%clk 0:02:19]} 19. exf5 {[%clk 0:02:08]}  Bxf5 {[%clk 0:02:20]} 20. f4 {[%clk 0:02:06]}  Rae8 {[%clk 0:02:18]} 21. fxe5 {[%clk 0:02:00]}  Nxe5 {[%clk 0:02:19]} 22. Bxe5 {[%clk 0:01:58]}  dxe5 {[%clk 0:02:18]} 23. Qd2 {[%clk 0:01:58]}  Qc5+ {[%clk 0:02:08]} 24. Qe3 {[%clk 0:01:58]}  Qd4 {[%clk 0:02:04]} 25. b3 {[%clk 0:01:50]}  a5 {[%clk 0:01:59]} 26. Rcd1 {[%clk 0:01:45]}  Qxe3+ {[%clk 0:01:53]} 27. Rxe3 {[%clk 0:01:44]}  Re7 {[%clk 0:01:50]} 28. d6 {[%clk 0:01:37]}  cxd6 {[%clk 0:01:34]} 29. Rxd6 {[%clk 0:01:36]}  Rb8 {[%clk 0:01:31]} 30. Bd5+ {[%clk 0:01:30]}  Kh8 {[%clk 0:01:31]} 31. Kg2 {[%clk 0:01:25]}  g6 {[%clk 0:01:31]} 32. h3 {[%clk 0:01:25]}  h5 {[%clk 0:01:30]} 33. Bf3 {[%clk 0:01:24]}  Kg7 {[%clk 0:01:29]} 34. g4 {[%clk 0:01:23]}  hxg4 {[%clk 0:01:29]} 35. hxg4 {[%clk 0:01:21]}  Bb1 {[%clk 0:01:29]} 36. Be4 {[%clk 0:01:16]}  Bxe4+ {[%clk 0:01:28]} 37. Rxe4 {[%clk 0:01:15]}  b5 {[%clk 0:01:28]} 38. c5 {[%clk 0:01:12]}  b4 {[%clk 0:01:23]} 39. g5 {[%clk 0:00:59]}  Rc8 {[%clk 0:01:21]} 40. Rd5 {[%clk 0:00:58]}  Rce8 {[%clk 0:01:16]} 41. c6 {[%clk 0:00:49]}  Kf7 {[%clk 0:01:16]} 42. Rxa5 {[%clk 0:00:47]}  Rc8 {[%clk 0:01:11]} 43. Rc5 {[%clk 0:00:47]}  Re6 {[%clk 0:01:09]} 44. Rxb4 {[%clk 0:00:42]}  Rexc6 {[%clk 0:01:08]} 45. Rxc6 {[%clk 0:00:42]}  Rxc6 {[%clk 0:01:09]} 46. Rc4 {[%clk 0:00:40]}  Rd6 {[%clk 0:01:05]} 47. a4 {[%clk 0:00:36]}  Rd2+ {[%clk 0:01:05]} 48. Kf3 {[%clk 0:00:35]}  Rd3+ {[%clk 0:01:05]} 49. Ke4 {[%clk 0:00:34]}  Rxb3 {[%clk 0:01:05]} 50. Kxe5 {[%clk 0:00:34]}  Re3+ {[%clk 0:01:06]} 51. Kd6 {[%clk 0:00:30]}  Rd3+ {[%clk 0:01:05]} 52. Kc6 {[%clk 0:00:29]}  Ra3 {[%clk 0:00:59]} 53. Kb5 {[%clk 0:00:27]}  Ke6 {[%clk 0:00:59]} 54. Rc5 {[%clk 0:00:20]}  Kd7 {[%clk 0:00:54]} 55. a5 {[%clk 0:00:18]}  Rb3+ {[%clk 0:00:54]} 56. Ka6 {[%clk 0:00:18]}  Kd6 {[%clk 0:00:53]} 57. Rb5 {[%clk 0:00:18]}  Re3 {[%clk 0:00:36]} 58. Rb6+ {[%clk 0:00:18]}  Kc7 {[%clk 0:00:33]} 59. Rxg6 {[%clk 0:00:17]}  Re5 {[%clk 0:00:33]} 60. Rg7+ {[%clk 0:00:14]}  Kc6 {[%clk 0:00:34]} 61. g6 {[%clk 0:00:13]}  Re8 {[%clk 0:00:34]} 62. Ra7 {[%clk 0:00:11]}  Re5 {[%clk 0:00:29]} 63. g7 {[%clk 0:00:09]}  Rg5 {[%clk 0:00:30]} 64. Rf7 {[%clk 0:00:08]}  Rg1 {[%clk 0:00:26]} 65. Ka7 {[%clk 0:00:06]}  Kd6 {[%clk 0:00:26]} 66. a6 {[%clk 0:00:06]}  Ke6 {[%clk 0:00:26]} 67. Rc7 {[%clk 0:00:06]}  Kd6 {[%clk 0:00:27]} 68. Rb7 {[%clk 0:00:06]}  Kc6 {[%clk 0:00:22]} 69. Ka8 {[%clk 0:00:05]}  Rg2 {[%clk 0:00:22]} 70. a7 {[%clk 0:00:05]}  Kd6 {[%clk 0:00:13]} 71. Kb8 {[%clk 0:00:04]}  Re2 {[%clk 0:00:13]} 72. Rb6+ {[%clk 0:00:04]}  Kc5 {[%clk 0:00:13]} 73. a8=Q {[%clk 0:00:04]}  Kxb6 {[%clk 0:00:13]} 74. Qb7+ {[%clk 0:00:04]}  Kc5 {[%clk 0:00:13]} 75. Qc7+ {[%clk 0:00:04]}  Kb5 {[%clk 0:00:13]} 76. g8=Q {[%clk 0:00:05]}  Rb2 {[%clk 0:00:10]} 77. Qgc4# {[%clk 0:00:04]} 1-0


[Site "https://www.chess.com"]

[Event "Titled Tuesday Blitz September 20 Late 2022"]
[White "Iliaguev, Nisim"]
[Black "Fernandez De La Vara, Arnaldo"]
[WhiteFideId "2817276"]
[BlackFideId "3518388"]
[WhiteElo "2107"]
[BlackElo "2387"]
[Result "0-1"]
[Round "08"]
[TimeControl "180+1"]
[Date "2022.09.20"]
[WhiteClock "0:00:10"]
[BlackClock "0:00:18"]

1. d4 {[%clk 0:03:00]}  c5 {[%clk 0:02:56]} 2. Nf3 {[%clk 0:03:00]}  Nf6 {[%clk 0:02:57]} 3. g3 {[%clk 0:03:01]}  b6 {[%clk 0:02:57]} 4. Bg2 {[%clk 0:03:01]}  Bb7 {[%clk 0:02:57]} 5. O-O {[%clk 0:03:01]}  g6 {[%clk 0:02:57]} 6. c4 {[%clk 0:03:02]}  cxd4 {[%clk 0:02:57]} 7. Qxd4 {[%clk 0:03:02]}  Bg7 {[%clk 0:02:57]} 8. Nc3 {[%clk 0:03:03]}  Nc6 {[%clk 0:02:56]} 9. Qd1 {[%clk 0:03:01]}  O-O {[%clk 0:02:56]} 10. a3 {[%clk 0:03:01]}  Rc8 {[%clk 0:02:53]} 11. h4 {[%clk 0:02:51]}  a6 {[%clk 0:02:47]} 12. Nd5 {[%clk 0:02:49]}  Na5 {[%clk 0:02:41]} 13. Nxf6+ {[%clk 0:02:44]}  Bxf6 {[%clk 0:02:42]} 14. c5 {[%clk 0:02:36]}  bxc5 {[%clk 0:02:39]} 15. Bh6 {[%clk 0:02:28]}  Bg7 {[%clk 0:02:39]} 16. Bxg7 {[%clk 0:02:29]}  Kxg7 {[%clk 0:02:40]} 17. Qc2 {[%clk 0:02:29]}  Qb6 {[%clk 0:02:19]} 18. h5 {[%clk 0:02:17]}  Qf6 {[%clk 0:02:08]} 19. g4 {[%clk 0:02:10]}  g5 {[%clk 0:02:00]} 20. Rac1 {[%clk 0:01:59]}  d6 {[%clk 0:01:55]} 21. Qd2 {[%clk 0:01:58]}  Nb3 {[%clk 0:01:54]} 22. Qxg5+ {[%clk 0:01:54]}  Qxg5 {[%clk 0:01:54]} 23. Nxg5 {[%clk 0:01:55]}  Bxg2 {[%clk 0:01:53]} 24. Kxg2 {[%clk 0:01:54]}  Nxc1 {[%clk 0:01:54]} 25. Rxc1 {[%clk 0:01:55]}  Rb8 {[%clk 0:01:48]} 26. Rc2 {[%clk 0:01:55]}  Rb3 {[%clk 0:01:42]} 27. f4 {[%clk 0:01:51]}  Rfb8 {[%clk 0:01:41]} 28. Rc4 {[%clk 0:01:31]}  Rxb2 {[%clk 0:01:40]} 29. Re4 {[%clk 0:01:32]}  e6 {[%clk 0:01:33]} 30. f5 {[%clk 0:01:24]}  h6 {[%clk 0:01:29]} 31. Nh3 {[%clk 0:01:13]}  exf5 {[%clk 0:01:26]} 32. gxf5 {[%clk 0:01:12]}  Kf6 {[%clk 0:01:27]} 33. Nf2 {[%clk 0:01:00]}  Kxf5 {[%clk 0:01:25]} 34. Re7 {[%clk 0:01:00]}  R8b7 {[%clk 0:01:23]} 35. Re8 {[%clk 0:00:57]}  c4 {[%clk 0:01:13]} 36. Kf3 {[%clk 0:00:50]}  c3 {[%clk 0:01:05]} 37. Rc8 {[%clk 0:00:35]}  d5 {[%clk 0:00:47]} 38. Nd3 {[%clk 0:00:31]}  R2b3 {[%clk 0:00:45]} 39. a4 {[%clk 0:00:27]}  Ra3 {[%clk 0:00:39]} 40. Rc5 {[%clk 0:00:25]}  Rd7 {[%clk 0:00:32]} 41. a5 {[%clk 0:00:24]}  Kg5 {[%clk 0:00:23]} 42. Rc6 {[%clk 0:00:17]}  d4 {[%clk 0:00:20]} 43. Rxa6 {[%clk 0:00:16]}  Rc7 {[%clk 0:00:19]} 44. Rb6 {[%clk 0:00:09]}  c2 {[%clk 0:00:18]} 45. Rb5+ {[%clk 0:00:10]}  f5 {[%clk 0:00:18]} 0-1


[Site "https://www.chess.com"]

[Event "Titled Tuesday Blitz September 20 Late 2022"]
[White "Kalogeris, Ioannis"]
[Black "Shandrygin, Nikita"]
[WhiteFideId "4239563"]
[BlackFideId "24198668"]
[WhiteElo "2291"]
[BlackElo "2323"]
[Result "0-1"]
[Round "08"]
[TimeControl "180+1"]
[Date "2022.09.20"]
[WhiteClock "0:00:38"]
[BlackClock "0:00:06"]

1. e4 {[%clk 0:02:59]}  c5 {[%clk 0:02:58]} 2. Nf3 {[%clk 0:02:58]}  e6 {[%clk 0:02:58]} 3. d4 {[%clk 0:02:58]}  cxd4 {[%clk 0:02:58]} 4. Nxd4 {[%clk 0:02:59]}  Nf6 {[%clk 0:02:56]} 5. Nc3 {[%clk 0:02:58]}  Nc6 {[%clk 0:02:53]} 6. Nxc6 {[%clk 0:02:56]}  bxc6 {[%clk 0:02:53]} 7. e5 {[%clk 0:02:57]}  Nd5 {[%clk 0:02:53]} 8. Ne4 {[%clk 0:02:57]}  Qc7 {[%clk 0:02:54]} 9. f4 {[%clk 0:02:52]}  Qb6 {[%clk 0:02:54]} 10. c4 {[%clk 0:02:50]}  Bb4+ {[%clk 0:02:52]} 11. Ke2 {[%clk 0:02:50]}  Ba6 {[%clk 0:02:51]} 12. Kf3 {[%clk 0:02:50]}  f5 {[%clk 0:02:52]} 13. Nd6+ {[%clk 0:02:22]}  Bxd6 {[%clk 0:02:10]} 14. exd6 {[%clk 0:02:23]}  Nf6 {[%clk 0:02:07]} 15. c5 {[%clk 0:02:07]}  Qb7 {[%clk 0:02:05]} 16. Qd4 {[%clk 0:02:01]}  Bxf1 {[%clk 0:02:03]} 17. Rxf1 {[%clk 0:02:02]}  O-O {[%clk 0:01:46]} 18. b3 {[%clk 0:01:40]}  Rae8 {[%clk 0:01:22]} 19. Bb2 {[%clk 0:01:37]}  Rf7 {[%clk 0:01:15]} 20. h3 {[%clk 0:01:34]}  Ne4 {[%clk 0:01:04]} 21. g4 {[%clk 0:01:30]}  Qb5 {[%clk 0:00:59]} 22. Rae1 {[%clk 0:01:23]}  Qxc5 {[%clk 0:00:17]} 23. Qxc5 {[%clk 0:01:12]}  Nxc5 {[%clk 0:00:18]} 24. Bd4 {[%clk 0:01:12]}  Ne4 {[%clk 0:00:17]} 25. Rxe4 {[%clk 0:01:06]}  fxe4+ {[%clk 0:00:18]} 26. Kxe4 {[%clk 0:01:07]}  g5 {[%clk 0:00:10]} 27. Be5 {[%clk 0:01:06]}  gxf4 {[%clk 0:00:10]} 28. Rf3 {[%clk 0:01:05]}  Rb8 {[%clk 0:00:07]} 29. a3 {[%clk 0:01:04]}  Rb5 {[%clk 0:00:06]} 30. b4 {[%clk 0:01:03]}  a5 {[%clk 0:00:05]} 31. Bc3 {[%clk 0:01:00]}  axb4 {[%clk 0:00:04]} 32. axb4 {[%clk 0:01:01]}  Rd5 {[%clk 0:00:04]} 33. Be5 {[%clk 0:00:59]}  Rb5 {[%clk 0:00:04]} 34. Bc3 {[%clk 0:00:58]}  Rf8 {[%clk 0:00:05]} 35. h4 {[%clk 0:00:57]}  Rd5 {[%clk 0:00:05]} 36. g5 {[%clk 0:00:57]}  Rff5 {[%clk 0:00:01]} 37. Bf6 {[%clk 0:00:53]}  Kf7 {[%clk 0:00:01]} 38. Bd8 {[%clk 0:00:51]}  Rb5 {[%clk 0:00:02]} 39. Ba5 {[%clk 0:00:50]}  c5 {[%clk 0:00:02]} 40. Rc3 {[%clk 0:00:43]}  f3 {[%clk 0:00:03]} 41. g6+ {[%clk 0:00:37]}  hxg6 {[%clk 0:00:03]} 42. Rc1 {[%clk 0:00:36]}  f2 {[%clk 0:00:03]} 43. Rf1 {[%clk 0:00:37]}  cxb4 {[%clk 0:00:04]} 44. Bd8 {[%clk 0:00:37]}  Rbe5+ {[%clk 0:00:05]} 45. Kd4 {[%clk 0:00:37]}  Re1 {[%clk 0:00:06]} 46. Rxf2 {[%clk 0:00:37]}  Rxf2 {[%clk 0:00:06]} 47. Kc4 {[%clk 0:00:38]}  Re4+ {[%clk 0:00:06]} 0-1


[Site "https://www.chess.com"]

[Event "Titled Tuesday Blitz September 20 Late 2022"]
[White "Korchmar, Vasiliy"]
[Black "Pham, Khoi"]
[WhiteFideId "24131750"]
[BlackFideId "1054988"]
[WhiteElo "2370"]
[BlackElo "2404"]
[Result "0-1"]
[Round "08"]
[TimeControl "180+1"]
[Date "2022.09.20"]
[WhiteClock "0:00:01"]
[BlackClock "0:00:15"]

1. e4 {[%clk 0:03:00]}  e6 {[%clk 0:02:59]} 2. d4 {[%clk 0:03:00]}  d5 {[%clk 0:02:59]} 3. e5 {[%clk 0:03:01]}  c5 {[%clk 0:02:59]} 4. c3 {[%clk 0:03:01]}  Nc6 {[%clk 0:02:59]} 5. Nf3 {[%clk 0:03:01]}  Qb6 {[%clk 0:03:00]} 6. Be2 {[%clk 0:03:01]}  Nh6 {[%clk 0:02:59]} 7. Bxh6 {[%clk 0:03:00]}  Qxb2 {[%clk 0:02:57]} 8. Be3 {[%clk 0:02:59]}  Qxa1 {[%clk 0:02:55]} 9. Qc2 {[%clk 0:02:45]}  cxd4 {[%clk 0:02:51]} 10. Nxd4 {[%clk 0:02:37]}  Nxd4 {[%clk 0:02:46]} 11. Bxd4 {[%clk 0:02:34]}  Ba3 {[%clk 0:02:33]} 12. O-O {[%clk 0:02:27]}  Qb2 {[%clk 0:02:31]} 13. Qa4+ {[%clk 0:02:27]}  Bd7 {[%clk 0:02:31]} 14. Qxa3 {[%clk 0:02:26]}  Qxe2 {[%clk 0:02:31]} 15. Bc5 {[%clk 0:02:03]}  Qa6 {[%clk 0:02:28]} 16. Qb4 {[%clk 0:02:03]}  Qc6 {[%clk 0:02:22]} 17. Nd2 {[%clk 0:01:54]}  f6 {[%clk 0:02:19]} 18. Nf3 {[%clk 0:01:45]}  Qb5 {[%clk 0:02:08]} 19. Qd4 {[%clk 0:01:30]}  Qc4 {[%clk 0:02:03]} 20. Qe3 {[%clk 0:01:30]}  Rc8 {[%clk 0:01:53]} 21. Bb4 {[%clk 0:01:22]}  a5 {[%clk 0:01:31]} 22. Bd6 {[%clk 0:01:14]}  Qxc3 {[%clk 0:01:23]} 23. Qf4 {[%clk 0:01:14]}  Rc4 {[%clk 0:01:17]} 24. Qg3 {[%clk 0:01:14]}  Kf7 {[%clk 0:01:17]} 25. exf6 {[%clk 0:01:04]}  gxf6 {[%clk 0:01:18]} 26. Qh3 {[%clk 0:01:02]}  h5 {[%clk 0:01:12]} 27. Re1 {[%clk 0:00:44]}  h4 {[%clk 0:01:07]} 28. Bg3 {[%clk 0:00:23]}  Re4 {[%clk 0:00:55]} 29. Rf1 {[%clk 0:00:21]}  Bb5 {[%clk 0:00:46]} 30. Bxh4 {[%clk 0:00:19]}  Qc4 {[%clk 0:00:34]} 31. Nd2 {[%clk 0:00:10]}  Rexh4 {[%clk 0:00:22]} 32. Nxc4 {[%clk 0:00:07]}  Rxh3 {[%clk 0:00:21]} 33. Nd6+ {[%clk 0:00:07]}  Ke7 {[%clk 0:00:22]} 34. Nxb5 {[%clk 0:00:07]}  Rd3 {[%clk 0:00:20]} 35. g3 {[%clk 0:00:05]}  Rc8 {[%clk 0:00:18]} 36. h4 {[%clk 0:00:04]}  e5 {[%clk 0:00:17]} 37. Kg2 {[%clk 0:00:04]}  d4 {[%clk 0:00:17]} 38. h5 {[%clk 0:00:04]}  Rd2 {[%clk 0:00:18]} 39. a4 {[%clk 0:00:03]}  e4 {[%clk 0:00:17]} 40. h6 {[%clk 0:00:01]}  e3 {[%clk 0:00:16]} 41. Kf3 {[%clk 0:00:01]}  e2 {[%clk 0:00:14]} 42. Re1 {[%clk 0:00:01]}  d3 {[%clk 0:00:15]} 0-1


[Site "https://www.chess.com"]

[Event "Titled Tuesday Blitz September 20 Late 2022"]
[White "Maze, Sebastien"]
[Black "Shimanov, Aleksandr"]
[WhiteFideId "613762"]
[BlackFideId "4198603"]
[WhiteElo "2430"]
[BlackElo "2605"]
[Result "1-0"]
[Round "08"]
[TimeControl "180+1"]
[Date "2022.09.20"]
[WhiteClock "0:00:17"]
[BlackClock "0:00:10"]

1. e4 {[%clk 0:03:00]}  d5 {[%clk 0:02:55]} 2. exd5 {[%clk 0:02:58]}  Qxd5 {[%clk 0:02:56]} 3. Nf3 {[%clk 0:02:58]}  Bg4 {[%clk 0:02:55]} 4. Be2 {[%clk 0:02:58]}  Nc6 {[%clk 0:02:55]} 5. O-O {[%clk 0:02:58]}  O-O-O {[%clk 0:02:54]} 6. h3 {[%clk 0:02:56]}  Bf5 {[%clk 0:02:53]} 7. Nc3 {[%clk 0:02:53]}  Qd7 {[%clk 0:02:53]} 8. b4 {[%clk 0:02:53]}  Nxb4 {[%clk 0:02:44]} 9. d3 {[%clk 0:02:42]}  e6 {[%clk 0:02:41]} 10. Rb1 {[%clk 0:02:37]}  Nc6 {[%clk 0:02:41]} 11. Be3 {[%clk 0:02:29]}  Nf6 {[%clk 0:02:40]} 12. Nb5 {[%clk 0:02:18]}  Nd5 {[%clk 0:02:29]} 13. Bxa7 {[%clk 0:02:09]}  Nxa7 {[%clk 0:02:18]} 14. Nxa7+ {[%clk 0:02:07]}  Kb8 {[%clk 0:02:18]} 15. Ne5 {[%clk 0:02:05]}  Qe8 {[%clk 0:02:06]} 16. Nac6+ {[%clk 0:01:49]}  Kc8 {[%clk 0:01:59]} 17. Nxd8 {[%clk 0:01:49]}  Nc3 {[%clk 0:01:58]} 18. Qd2 {[%clk 0:01:45]}  Nxb1 {[%clk 0:01:58]} 19. Rxb1 {[%clk 0:01:44]}  Kxd8 {[%clk 0:01:49]} 20. Rxb7 {[%clk 0:01:42]}  Kc8 {[%clk 0:01:49]} 21. Bf3 {[%clk 0:01:29]}  Qa4 {[%clk 0:01:44]} 22. Bc6 {[%clk 0:01:17]}  Qxa2 {[%clk 0:01:39]} 23. Nd7 {[%clk 0:01:14]}  Qa1+ {[%clk 0:00:59]} 24. Kh2 {[%clk 0:01:13]}  Bd6+ {[%clk 0:01:00]} 25. g3 {[%clk 0:01:13]}  Qa8 {[%clk 0:01:01]} 26. Rb8+ {[%clk 0:00:37]}  Qxb8 {[%clk 0:01:01]} 27. Nxb8 {[%clk 0:00:38]}  Kd8 {[%clk 0:00:57]} 28. Be4 {[%clk 0:00:35]}  Bg6 {[%clk 0:00:52]} 29. Qa5 {[%clk 0:00:34]}  Ke7 {[%clk 0:00:51]} 30. Nc6+ {[%clk 0:00:33]}  Kd7 {[%clk 0:00:52]} 31. Qb5 {[%clk 0:00:33]}  f5 {[%clk 0:00:45]} 32. Bg2 {[%clk 0:00:27]}  Rf8 {[%clk 0:00:41]} 33. f4 {[%clk 0:00:27]}  Be8 {[%clk 0:00:38]} 34. d4 {[%clk 0:00:26]}  h6 {[%clk 0:00:35]} 35. d5 {[%clk 0:00:25]}  g5 {[%clk 0:00:34]} 36. dxe6+ {[%clk 0:00:24]}  Kxe6 {[%clk 0:00:35]} 37. Qd5+ {[%clk 0:00:23]}  Kf6 {[%clk 0:00:35]} 38. Nd4 {[%clk 0:00:22]}  Bd7 {[%clk 0:00:35]} 39. c4 {[%clk 0:00:19]}  Bc8 {[%clk 0:00:10]} 40. c5 {[%clk 0:00:19]}  Be7 {[%clk 0:00:11]} 41. Qe5+ {[%clk 0:00:19]}  Kg6 {[%clk 0:00:12]} 42. Ne6 {[%clk 0:00:18]}  Bf6 {[%clk 0:00:10]} 43. Nxf8+ {[%clk 0:00:17]} 1-0


[Site "https://www.chess.com"]

[Event "Titled Tuesday Blitz September 20 Late 2022"]
[White "Melikyan, Gnel"]
[Black "Rasulov, Vugar"]
[WhiteFideId "54109990"]
[BlackFideId "13402390"]
[WhiteElo "1772"]
[BlackElo "2509"]
[Result "0-1"]
[Round "08"]
[TimeControl "180+1"]
[Date "2022.09.20"]
[WhiteClock "0:00:01"]
[BlackClock "0:01:55"]

1. e4 {[%clk 0:02:59]}  c5 {[%clk 0:02:59]} 2. Nf3 {[%clk 0:02:59]}  Nc6 {[%clk 0:02:59]} 3. Bb5 {[%clk 0:02:59]}  d6 {[%clk 0:02:59]} 4. d4 {[%clk 0:02:55]}  cxd4 {[%clk 0:02:58]} 5. Nxd4 {[%clk 0:02:54]}  Bd7 {[%clk 0:02:58]} 6. Nc3 {[%clk 0:02:54]}  Nf6 {[%clk 0:02:58]} 7. O-O {[%clk 0:02:53]}  g6 {[%clk 0:02:58]} 8. Be3 {[%clk 0:02:50]}  Bg7 {[%clk 0:02:58]} 9. Qe2 {[%clk 0:02:46]}  O-O {[%clk 0:02:58]} 10. h3 {[%clk 0:02:26]}  Rc8 {[%clk 0:02:57]} 11. Rfd1 {[%clk 0:02:18]}  a6 {[%clk 0:02:53]} 12. Bxc6 {[%clk 0:02:16]}  bxc6 {[%clk 0:02:53]} 13. Qxa6 {[%clk 0:02:14]}  c5 {[%clk 0:02:53]} 14. Nf3 {[%clk 0:02:10]}  Qc7 {[%clk 0:02:51]} 15. Bg5 {[%clk 0:01:57]}  Bc6 {[%clk 0:02:46]} 16. Re1 {[%clk 0:01:49]}  h6 {[%clk 0:02:39]} 17. Bh4 {[%clk 0:01:40]}  Nh5 {[%clk 0:02:31]} 18. Qd3 {[%clk 0:01:13]}  g5 {[%clk 0:02:27]} 19. Bg3 {[%clk 0:01:05]}  Nxg3 {[%clk 0:02:27]} 20. fxg3 {[%clk 0:01:06]}  Rb8 {[%clk 0:02:28]} 21. Rab1 {[%clk 0:01:05]}  e6 {[%clk 0:02:26]} 22. a3 {[%clk 0:00:54]}  Rfd8 {[%clk 0:02:26]} 23. Rf1 {[%clk 0:00:49]}  Qa5 {[%clk 0:02:22]} 24. Nd2 {[%clk 0:00:44]}  Qc7 {[%clk 0:02:02]} 25. Kh1 {[%clk 0:00:34]}  d5 {[%clk 0:02:02]} 26. exd5 {[%clk 0:00:31]}  exd5 {[%clk 0:02:03]} 27. Rf5 {[%clk 0:00:18]}  c4 {[%clk 0:01:59]} 28. Qf1 {[%clk 0:00:12]}  d4 {[%clk 0:01:58]} 29. Nce4 {[%clk 0:00:09]}  c3 {[%clk 0:01:58]} 30. bxc3 {[%clk 0:00:07]}  dxc3 {[%clk 0:01:59]} 31. Rxb8 {[%clk 0:00:07]}  Qxb8 {[%clk 0:01:58]} 32. Rxf7 {[%clk 0:00:02]}  Qe5 {[%clk 0:01:55]} 33. Rxg7+ {[%clk 0:00:01]}  Kxg7 {[%clk 0:01:55]} 0-1


[Site "https://www.chess.com"]

[Event "Titled Tuesday Blitz September 20 Late 2022"]
[White "Moral Garcia, Serafin"]
[Black "Brodowski, Piotr"]
[WhiteFideId "2201925"]
[BlackFideId "1124480"]
[WhiteElo "2259"]
[BlackElo "2312"]
[Result "1-0"]
[Round "08"]
[TimeControl "180+1"]
[Date "2022.09.20"]
[WhiteClock "0:00:15"]
[BlackClock "0:00:01"]

1. c4 {[%clk 0:03:00]}  e5 {[%clk 0:02:53]} 2. Nc3 {[%clk 0:03:00]}  g6 {[%clk 0:02:53]} 3. g3 {[%clk 0:02:58]}  Bg7 {[%clk 0:02:53]} 4. Bg2 {[%clk 0:02:58]}  Nc6 {[%clk 0:02:53]} 5. d3 {[%clk 0:02:58]}  f5 {[%clk 0:02:53]} 6. e3 {[%clk 0:02:58]}  Nf6 {[%clk 0:02:53]} 7. Nge2 {[%clk 0:02:59]}  O-O {[%clk 0:02:53]} 8. Rb1 {[%clk 0:02:58]}  a5 {[%clk 0:02:51]} 9. O-O {[%clk 0:02:57]}  d6 {[%clk 0:02:52]} 10. a3 {[%clk 0:02:56]}  Be6 {[%clk 0:02:51]} 11. Nd5 {[%clk 0:02:44]}  Qd7 {[%clk 0:02:36]} 12. b4 {[%clk 0:02:38]}  axb4 {[%clk 0:02:36]} 13. axb4 {[%clk 0:02:38]}  Nd8 {[%clk 0:02:35]} 14. Bb2 {[%clk 0:02:34]}  Qf7 {[%clk 0:02:34]} 15. Nec3 {[%clk 0:02:26]}  c6 {[%clk 0:02:29]} 16. Nxf6+ {[%clk 0:02:26]}  Bxf6 {[%clk 0:02:29]} 17. Qe2 {[%clk 0:02:20]}  Qg7 {[%clk 0:02:29]} 18. Ra1 {[%clk 0:02:11]}  Rxa1 {[%clk 0:02:28]} 19. Rxa1 {[%clk 0:02:10]}  g5 {[%clk 0:02:29]} 20. b5 {[%clk 0:02:03]}  e4 {[%clk 0:02:20]} 21. d4 {[%clk 0:01:59]}  Qf7 {[%clk 0:02:12]} 22. Bf1 {[%clk 0:01:45]}  Qc7 {[%clk 0:01:54]} 23. f3 {[%clk 0:01:24]}  exf3 {[%clk 0:01:53]} 24. Qxf3 {[%clk 0:01:24]}  Nf7 {[%clk 0:01:53]} 25. bxc6 {[%clk 0:01:16]}  bxc6 {[%clk 0:01:52]} 26. Bd3 {[%clk 0:01:09]}  g4 {[%clk 0:01:49]} 27. Qf2 {[%clk 0:01:06]}  Ng5 {[%clk 0:01:49]} 28. Kh1 {[%clk 0:01:01]}  Nf3 {[%clk 0:01:49]} 29. Be2 {[%clk 0:01:00]}  Rb8 {[%clk 0:01:47]} 30. Ba3 {[%clk 0:00:55]}  Qa5 {[%clk 0:01:41]} 31. Nd1 {[%clk 0:00:34]}  Rb3 {[%clk 0:00:38]} 32. Bb2 {[%clk 0:00:31]}  Qb4 {[%clk 0:00:31]} 33. Bxf3 {[%clk 0:00:30]}  gxf3 {[%clk 0:00:30]} 34. Qxf3 {[%clk 0:00:29]}  Qxc4 {[%clk 0:00:27]} 35. Kg1 {[%clk 0:00:18]}  Rb8 {[%clk 0:00:07]} 36. Ba3 {[%clk 0:00:16]}  Ra8 {[%clk 0:00:04]} 37. Bb2 {[%clk 0:00:16]}  Rxa1 {[%clk 0:00:03]} 38. Bxa1 {[%clk 0:00:16]}  Kg7 {[%clk 0:00:02]} 39. Bc3 {[%clk 0:00:16]}  Kg6 {[%clk 0:00:02]} 40. Be1 {[%clk 0:00:15]}  Bd5 {[%clk 0:00:02]} 41. Qf1 {[%clk 0:00:15]}  Qc2 {[%clk 0:00:01]} 42. Nf2 {[%clk 0:00:15]} 1-0


[Site "https://www.chess.com"]